{"text_format":"3","workbook":"xlsx","n_sheets":1,"sheets":["Sheet1"],"read":"whole","date_system":"1900"}

{"sheet":"Sheet1","index":0,"n_rows":19,"n_cols":10,"rows_kept":19,"merged":[[0,0,0,9],[8,1,8,4],[9,1,9,8]]}
["BID SCHEDULE - 20301 - CAMPBELL POOL & CYPRESS AQUATIC CENTER POOL CHEMICAL DELIVERY"]
["Ref. No.","Description","Unit of Measure (UOM)","Estimated Quanty (Est Qty)","1st year         Unit Price","1st year          Ext Price","1st Renewal         Unit Price","1st Renewal          Ext Price","2nd Renewal         Unit Price","2nd Renewal          Ext Price"]
[1,"Chlorine (pumped directly into 175 gal tank)","gallon",2920,null,{"$f":"+E3*D3","v":0},null,{"$f":"+G3*D3","v":0},null,{"$f":"+I3*D3","v":0}]
[2,"Non-Fuming Sulfuric Acid                                   (pumped directly into 100 gal tanks)","gallon",974,null,{"$f":"+E4*D4","v":0},null,{"$f":"+G4*D4","v":0},null,{"$f":"+I4*D4","v":0}]
[3,"Sodium Bicarbonate","50# bag",208,null,0,null,0,null,0]
[4,"Calcium","50# bag",17,null,0,null,0,null,0]
[5,"Shock","25# drum",2,null,0,null,0,null,0]
[6,"Stabilizer","25# drum",3,null,0,null,0,null,0]
[null,"Annual Total ( Items 1-6)",{"$nulls":3},{"$f":"SUM(F3:F8)","v":0},null,{"$f":"SUM(H3:H8)","v":0},null,{"$f":"SUM(J3:J8)","v":0}]
[null,"Total of 1st year plus both renewals",{"$nulls":7},{"$f":"+J9+H9+F9","v":0}]
[null,"Recommendation of Award will be to the lowest responsive and responsible bidder for three years (original year plus both renewals)."]
[null,"This page may be substituted for page 25 of the bid package."]
[]
[null,"Date Signed:"]
[null,"Signature:"]
[null,"Printed Name:"]
[null,"Title:"]
[null,"Company Name:"]
[null,"Email:"]